bitfinex/quotes_SOLUSD_20240908
["timestamp","ask_amount","ask_price","bid_price","bid_amount"]
[1725838860650,28.46548771,130.16,130.12,11.15732699]
[1725838860851,45.0,130.15,130.1,11.15732699]
[1725838862078,45.0,130.15,130.12,11.15732699]
[1725838863175,28.46548771,130.16,130.14,11.15732699]
[1725838864364,8.38261448,130.24,130.15,36.287]
[1725838864365,56.47451792,130.24,130.15,36.287]
[1725838864565,50.01261792,130.24,130.21,11.15732699]
[1725838864771,50.01261792,130.24,130.23,11.15732699]
[1725838865073,41.50109394,130.31,130.23,31.15732699]
[1725838865251,41.50109394,130.31,130.25,11.15732699]
[1725838865458,15.0184,130.31,130.25,11.15732699]
[1725838865652,16.93761155,130.31,130.23,11.15732699]
[1725838865853,9.38284107,130.3,130.21,15.267]
[1725838866156,9.38284107,130.3,130.16,1.53558866]
[1725838866157,36.61471216,130.3,130.16,1.53558866]
[1725838866476,12.5096,130.28,130.17,11.15732699]
[1725838866669,12.5096,130.28,130.15,21.4295]
[1725838866670,44.84028549,130.27,130.15,21.4295]
[1725838866857,27.49854877,130.26,130.18,11.15732699]
[1725838867053,44.67593284,130.25,130.18,11.15732699]
[1725838867859,1.9198684,130.24,130.18,11.15732699]
[1725838868658,1.91999022,130.23,130.18,11.15732699]
[1725838869056,45.0,130.24,130.18,11.15732699]
[1725838869365,46.92006087,130.24,130.18,11.15732699]
[1725838869570,1.92006156,130.23,130.18,11.15732699]
[1725838869971,46.92006156,130.24,130.18,11.15732699]
[1725838870165,1.92006156,130.23,130.18,11.15732699]
[1725838870483,45.0,130.24,130.2,11.15732699]
[1725838870992,24.67593284,130.25,130.2,11.15732699]
[1725838871281,24.67593284,130.25,130.15,21.4295]
[1725838871478,24.67593284,130.25,130.21,11.15732699]
[1725838872455,24.67593284,130.25,130.15,21.4295]
[1725838872655,24.67593284,130.25,130.19,11.15732699]
[1725838873173,24.67593284,130.25,130.21,11.15732699]
[1725838873376,45.0,130.24,130.21,11.15732699]
[1725838874264,24.67593284,130.25,130.23,11.15732699]
[1725838875079,1.91946089,130.29,130.23,11.15732699]
[1725838875378,21.91946089,130.29,130.23,11.15732699]
[1725838875578,45.0,130.28,130.23,11.15732699]
[1725838875777,1.91949276,130.27,130.23,11.15732699]
[1725838875983,1.91949276,130.27,130.22,11.15732699]
[1725838877887,1.91947931,130.26,130.22,11.15732699]
[1725838878178,1.91947931,130.26,130.2,11.15732699]
[1725838878486,46.91987662,130.28,130.2,11.15732699]
[1725838878661,1.91978027,130.27,130.2,11.15732699]
[1725838878862,1.91998439,130.27,130.2,11.15732699]
[1725838879072,1.91992452,130.26,130.2,11.15732699]
[1725838880969,46.91992452,130.26,130.2,11.15732699]
[1725838884083,46.91992452,130.26,130.18,17.23592699]
[1725838884389,64.79086005,130.26,130.18,17.23592699]
[1725838885070,42.2918,130.25,130.17,15.2749]
[1725838885272,45.0,130.24,130.17,15.2749]
[1725838885486,45.0,130.24,130.18,11.15732699]
[1725838888471,1.92015136,130.23,130.18,11.15732699]
[1725838889489,17.87093553,130.26,130.2,11.15732699]
[1725838889810,17.87093553,130.26,130.22,11.15732699]
[1725838889963,19.79048426,130.26,130.22,11.15732699]
[1725838890879,19.79048426,130.26,130.2,11.15732699]
[1725838891380,19.79048426,130.26,130.17,15.2749]
[1725838891381,45.0,130.25,130.18,11.15732699]
[1725838891580,1.91997975,130.24,130.18,11.15732699]
[1725838892488,1.91996847,130.23,130.17,15.2749]
[1725838892802,1.91996847,130.23,130.17,26.43222699]
[1725838894496,17.02906847,130.23,130.17,11.15732699]
[1725838894793,45.0,130.22,130.17,11.15732699]
[1725838895096,46.92027616,130.22,130.17,11.15732699]
[1725838897486,45.0,130.22,130.17,11.15732699]
[1725838898186,17.11491003,130.25,130.19,11.15732699]
[1725838898384,17.11491003,130.25,130.21,11.15732699]
[1725838899774,45.0,130.24,130.21,11.15732699]
[1725838900172,17.11491003,130.25,130.21,11.15732699]
[1725838901796,45.0,130.24,130.21,11.15732699]
[1725838903202,45.0,130.25,130.21,11.15732699]
[1725838907205,31.50147274,130.29,130.23,11.15732699]
[1725838907385,1.91932318,130.28,130.23,11.15732699]
[1725838908908,46.91932318,130.28,130.23,11.15732699]
[1725838911887,16.47947274,130.29,130.27,11.15732699]
[1725838912092,15.9643,130.32,130.27,11.15732699]
[1725838912405,15.4061,130.35,130.27,11.15732699]
[1725838912406,6.1688,130.35,130.27,11.15732699]
[1725838912598,8.08750185,130.35,130.27,11.15732699]
[1725838913110,8.08750185,130.35,130.25,1.53927959]
[1725838913318,15.10368041,130.35,130.27,26.65682699]
[1725838913484,15.10368041,130.35,130.29,11.15732699]
[1725838914028,17.02228437,130.35,130.29,11.15732699]
[1725838914611,15.10368041,130.35,130.29,11.15732699]
[1725838914916,45.0,130.34,130.29,11.15732699]
[1725838915418,1.91855992,130.33,130.29,11.15732699]
[1725838915918,1.91870394,130.32,130.27,26.65682699]
[1725838916923,1.91873357,130.33,130.27,26.65682699]
[1725838917103,46.91865358,130.34,130.27,26.65682699]
[1725838919799,46.91865358,130.34,130.27,15.4995]
[1725838920711,60.79339285,130.34,130.27,15.4995]
[1725838924231,20.0,130.33,130.27,15.4995]
[1725838924428,46.9190813,130.32,130.27,15.4995]
[1725838924813,46.91908123,130.33,130.27,15.4995]
[1725838925014,45.0,130.31,130.27,15.4995]
[1725838925212,46.91908123,130.33,130.27,15.4995]
[1725838925628,1.91908129,130.32,130.27,15.4995]
[1725838927113,45.0,130.33,130.27,15.4995]
[1725838927114,46.91908397,130.33,130.27,15.4995]
[1725838927614,1.91908054,130.32,130.27,15.4995]
[1725838927815,46.91907974,130.33,130.27,15.4995]
[1725838929134,45.0,130.34,130.27,15.4995]
[1725838929333,20.0,130.33,130.27,15.4995]
[1725838929535,45.0,130.32,130.27,15.4995]
[1725838930325,13.60318492,130.35,130.28,17.32162699]
[1725838931511,13.60318492,130.35,130.3,11.15732699]
[1725838931713,13.60318492,130.35,130.32,11.15732699]
[1725838932936,1.9181512,130.4,130.32,11.15732699]
[1725838933931,66.9181512,130.4,130.32,11.15732699]
[1725838934147,80.42012035,130.4,130.32,11.15732699]
[1725838935138,80.42012035,130.4,130.32,26.99032699]
[1725838939458,80.42012035,130.4,130.33,6.4175]
[1725838939627,78.50196915,130.4,130.33,7.95195125]
[1725838939941,78.50196915,130.4,130.33,6.4175]
[1725838940118,33.50196915,130.4,130.34,11.15732699]
[1725838940442,13.50196915,130.4,130.34,11.15732699]
[1725838940945,0.8425024,130.41,130.36,11.15732699]
[1725838941740,0.8425024,130.41,130.35,15.6773]
[1725838942124,1.91774515,130.4,130.35,15.6773]
[1725838942432,1.91772143,130.39,130.35,15.6773]
[1725838943340,2.76018161,130.41,130.35,15.6773]
[1725838943745,22.76018161,130.41,130.35,15.6773]
[1725838944043,45.0,130.4,130.35,15.6773]
[1725838944343,1.91767425,130.39,130.35,15.6773]
[1725838944549,45.0,130.4,130.35,15.6773]
[1725838945633,45.0,130.4,130.36,11.15732699]
[1725838946046,0.8425024,130.41,130.37,6.0656]
[1725838946634,0.8425024,130.41,130.38,11.15732699]
[1725838949624,0.8425024,130.41,130.39,15.6326]
[1725838953352,0.8425024,130.41,130.4,11.15732699]
[1725838955335,0.8425024,130.41,130.4,17.20272699]
[1725838961548,0.8425024,130.41,130.4,6.0454]
[1725838962329,0.8425024,130.41,130.4,17.20272699]
[1725838964938,0.8425024,130.41,130.4,6.0454]
[1725838969967,0.8425024,130.41,130.39,26.78992699]
[1725838970166,0.8425024,130.41,130.39,15.6326]
[1725838970544,0.8425024,130.41,130.4,11.15732699]
[1725838981270,0.8425024,130.41,130.39,21.897]
[1725838981455,0.8425024,130.41,130.39,33.05432699]
[1725838983651,0.8425024,130.41,130.36,15.5376]
[1725838983864,0.8425024,130.41,130.38,11.15732699]
[1725838988563,0.8425024,130.41,130.4,11.15732699]
[1725838988973,0.8425024,130.41,130.37,1.53768324]
[1725838989274,0.8425024,130.41,130.39,11.15732699]
[1725838992068,0.8425024,130.41,130.37,1.53763349]
[1725838992270,0.8425024,130.41,130.39,11.15732699]
[1725839015094,0.8425024,130.41,130.37,11.15732699]
[1725839017681,2.75977909,130.41,130.35,6.4802]
[1725839017888,1.91760502,130.4,130.33,15.7558]
[1725839018091,1.91787686,130.39,130.33,15.7558]
[1725839018993,2.76031195,130.41,130.33,15.7558]
[1725839019297,2.76031195,130.41,130.34,11.15732699]
[1725839020405,0.8425024,130.41,130.34,11.15732699]
[1725839022379,0.8425024,130.41,130.33,15.7558]
[1725839022597,0.8425024,130.41,130.34,11.15732699]
[1725839024802,1.91768938,130.4,130.34,11.15732699]
[1725839025097,0.8425024,130.41,130.34,11.15732699]
[1725839026977,1.91769072,130.4,130.34,11.15732699]
[1725839027205,1.91770109,130.39,130.34,11.15732699]
[1725839027718,1.91770617,130.38,130.29,15.6148]
[1725839027888,1.91810628,130.37,130.3,11.15732699]
[1725839028086,46.91810628,130.37,130.3,11.15732699]
[1725839028714,1.91810628,130.37,130.3,11.15732699]
[1725839028909,21.91810628,130.37,130.3,11.15732699]
[1725839029088,46.91833507,130.36,130.3,11.15732699]
[1725839029288,45.0,130.38,130.3,11.15732699]
[1725839030303,45.0,130.38,130.32,11.15732699]
[1725839030700,1.91811908,130.37,130.32,11.15732699]
[1725839031118,46.91813644,130.38,130.27,6.588]
[1725839031413,45.0,130.38,130.31,11.15732699]
[1725839032511,1.91821218,130.37,130.27,6.588]
[1725839033010,21.91821218,130.37,130.29,11.15732699]
[1725839033182,45.0,130.36,130.29,11.15732699]
[1725839033384,1.9184505,130.35,130.29,11.15732699]
[1725839034013,15.8254,130.34,130.29,11.15732699]
[1725839034190,46.91847195,130.33,130.29,11.15732699]
[1725839034388,1.9184654,130.32,130.24,6.2662]
[1725839034591,45.0,130.33,130.27,11.15732699]
[1725839036218,45.0,130.33,130.29,11.15732699]
[1725839038393,6.1281,130.36,130.31,11.15732699]
[1725839040622,45.0,130.35,130.31,11.15732699]
[1725839041113,46.91824537,130.35,130.29,11.15732699]
[1725839041312,45.0,130.35,130.29,11.15732699]
[1725839042294,46.91841246,130.35,130.29,11.15732699]
[1725839042712,45.0,130.35,130.31,11.15732699]
[1725839043128,28.8644551,130.37,130.31,11.15732699]
[1725839043129,45.0,130.36,130.31,11.15732699]
[1725839044029,1.91829788,130.35,130.31,11.15732699]
[1725839044728,1.91825399,130.35,130.31,11.15732699]
[1725839046640,45.0,130.36,130.31,11.15732699]
[1725839050225,1.9183046,130.35,130.29,11.15732699]
[1725839052127,1.9183046,130.35,130.27,11.15732699]
[1725839052529,46.91872392,130.36,130.27,11.15732699]
[1725839053026,1.91878581,130.35,130.27,11.15732699]
[1725839054917,21.91878581,130.35,130.27,11.15732699]
[1725839055118,45.0,130.34,130.27,11.15732699]
[1725839056919,1.91861044,130.33,130.27,11.15732699]
[1725839058217,45.0,130.34,130.27,11.15732699]
[1725839059243,45.0,130.34,130.29,11.15732699]
[1725839060139,45.0,130.34,130.26,16.5362]
[1725839060437,45.0,130.34,130.28,11.15732699]
[1725839061021,1.91861315,130.33,130.26,16.5362]
[1725839061221,1.91861315,130.33,130.28,11.15732699]
[1725839062616,1.91861315,130.33,130.27,1.53853346]
[1725839062938,1.91861315,130.33,130.28,11.15732699]
[1725839063621,45.0,130.34,130.28,12.69586045]
[1725839063841,45.0,130.34,130.28,11.15732699]
[1725839064428,1.91861409,130.33,130.27,1.53853346]
[1725839064638,1.9188485,130.32,130.25,12.69586045]
[1725839064929,46.9188485,130.32,130.25,11.15732699]
[1725839065155,46.9188485,130.32,130.25,12.69612858]
[1725839065353,46.9188485,130.32,130.25,11.15732699]
[1725839066147,46.9188485,130.32,130.25,12.69616316]
[1725839066436,46.9188485,130.32,130.25,11.15732699]
[1725839066837,46.9188485,130.32,130.23,1.53883617]
[1725839067028,22.8872,130.31,130.22,1.53883617]
[1725839067243,46.91936607,130.3,130.22,11.15732699]
[1725839067546,1.91949534,130.29,130.22,11.15732699]
[1725839068117,1.91949534,130.29,130.21,6.2136]
[1725839068346,1.91949534,130.29,130.2,1.53924424]
[1725839068643,1.91949534,130.29,130.18,12.69657123]
[1725839068644,16.4569,130.28,130.18,12.69657123]
[1725839068944,46.91983515,130.27,130.18,12.69657123]
[1725839069143,8.33377639,130.26,130.18,11.15732699]
[1725839069331,45.0,130.25,130.18,11.15732699]
[1725839069532,1.92004623,130.24,130.18,11.15732699]
[1725839069725,1.92004158,130.23,130.18,11.15732699]
[1725839070125,45.0,130.25,130.2,11.15732699]
[1725839070320,45.0,130.25,130.16,16.0966]
[1725839070530,45.0,130.25,130.19,11.15732699]
[1725839071546,1.92011924,130.24,130.19,11.15732699]
[1725839071846,1.92013815,130.23,130.19,11.15732699]
[1725839072046,1.92013168,130.23,130.17,11.15732699]
[1725839073646,16.5284,130.23,130.17,11.15732699]
[1725839073841,45.0,130.22,130.17,11.15732699]
[1725839079248,16.5284,130.23,130.17,11.15732699]
[1725839080440,45.0,130.22,130.17,11.15732699]
[1725839081654,45.0,130.22,130.19,11.15732699]
[1725839082534,15.4429,130.26,130.21,11.15732699]
[1725839082738,21.8746,130.29,130.23,11.15732699]
[1725839084048,15.4429,130.29,130.23,11.15732699]
[1725839084745,21.8963,130.32,130.27,11.15732699]
[1725839085239,28.8943462,130.34,130.27,11.15732699]
[1725839085641,26.97518559,130.34,130.29,11.15732699]
[1725839086943,26.97518559,130.34,130.23,16.2244]
[1725839087138,26.97518559,130.34,130.29,11.15732699]
[1725839087962,45.0,130.33,130.24,1.5351133]
[1725839088162,45.0,130.33,130.28,11.15732699]
[1725839089371,46.9190251,130.33,130.28,11.15732699]
[1725839089738,45.0,130.33,130.28,11.15732699]
[1725839090957,46.91908238,130.33,130.28,11.15732699]
[1725839091149,45.0,130.33,130.28,11.15732699]
[1725839093245,45.0,130.34,130.28,11.15732699]
[1725839094765,17.36182727,130.35,130.28,11.15732699]
[1725839095060,20.0,130.34,130.28,11.15732699]
[1725839095656,20.0,130.34,130.3,11.15732699]
[1725839096674,45.0,130.33,130.3,11.15732699]
[1725839103179,45.0,130.34,130.32,11.15732699]
[1725839103349,15.44281077,130.35,130.32,11.15732699]
[1725839104068,15.44281077,130.35,130.34,11.15732699]
[1725839104282,8.52079548,130.39,130.34,11.15732699]
[1725839106055,1.91839548,130.39,130.34,11.15732699]
[1725839106261,20.0,130.39,130.34,11.15732699]
[1725839106574,21.91813353,130.39,130.34,11.15732699]
[1725839107270,21.91813353,130.39,130.3,15.5302]
[1725839107458,21.91813353,130.39,130.32,11.15732699]
[1725839107459,37.79805907,130.39,130.32,11.15732699]
[1725839107968,45.0,130.38,130.32,11.15732699]
[1725839108168,1.9184189,130.37,130.32,11.15732699]
[1725839111175,46.91841767,130.38,130.32,11.15732699]
[1725839111374,45.0,130.38,130.32,11.15732699]
[1725839111677,35.87992554,130.39,130.34,11.15732699]
[1725839112177,37.79794964,130.39,130.34,11.15732699]
[1725839112682,17.79794964,130.39,130.34,11.15732699]
[1725839114482,45.0,130.38,130.34,11.15732699]
[1725839114685,1.91798189,130.37,130.34,11.15732699]
[1725839115292,45.0,130.38,130.34,11.15732699]
[1725839118314,1.9182847,130.37,130.32,17.59972699]
[1725839118480,46.91838414,130.38,130.32,17.59972699]
[1725839118684,45.0,130.38,130.34,11.15732699]
[1725839118881,1.91806625,130.37,130.34,11.15732699]
[1725839119286,15.87992554,130.39,130.36,11.15732699]
[1725839119491,0.8425024,130.41,130.38,11.15732699]
[1725839119788,0.8425024,130.41,130.4,11.15732699]
[1725839123808,0.8425024,130.41,130.35,22.886]
[1725839124105,0.8425024,130.41,130.36,11.15732699]
[1725839125301,1.91781863,130.4,130.36,11.15732699]
[1725839127201,45.8425024,130.41,130.38,11.15732699]
[1725839127787,1.91763251,130.4,130.38,11.15732699]
[1725839127990,45.8425024,130.41,130.38,11.15732699]
[1725839128185,0.8425024,130.41,130.38,11.15732699]
[1725839130193,1.91774083,130.4,130.38,11.15732699]
[1725839130397,45.8425024,130.41,130.38,11.15732699]
[1725839130714,45.8425024,130.41,130.36,11.15732699]
[1725839130893,46.91787152,130.4,130.36,11.15732699]
[1725839131090,2.76040314,130.41,130.36,11.15732699]
[1725839131305,47.76040314,130.41,130.36,11.15732699]
[1725839131691,2.76040314,130.41,130.36,11.15732699]
[1725839132111,22.76040314,130.41,130.36,11.15732699]
[1725839132299,45.0,130.4,130.36,11.15732699]
[1725839132497,1.91804445,130.39,130.34,11.15732699]
[1725839133016,60.67374401,130.4,130.34,11.15732699]
[1725839133420,1.91812628,130.39,130.34,11.15732699]
[1725839134700,21.91812628,130.39,130.32,11.15732699]
[1725839134905,45.0,130.38,130.32,11.15732699]
[1725839135112,21.91848007,130.37,130.32,11.15732699]
[1725839135297,45.0,130.36,130.32,11.15732699]
[1725839136719,45.0,130.36,130.34,11.15732699]
[1725839139610,15.67374401,130.4,130.34,11.15732699]
[1725839139812,15.67374401,130.4,130.38,11.15732699]
[1725839142229,45.0,130.39,130.38,11.15732699]
[1725839142435,15.67374401,130.4,130.37,16.3588]
[1725839142729,0.8425024,130.41,130.39,11.15732699]
[1725839150534,0.3425024,130.41,130.39,11.15732699]
[1725839152730,0.3425024,130.41,130.38,11.15732699]
[1725839160934,0.3425024,130.41,130.36,6.0721]
[1725839161133,0.3425024,130.41,130.38,11.15732699]
[1725839161539,0.3425024,130.41,130.4,11.15732699]
[1725839162645,16.34130268,130.47,130.4,12.69095951]
[1725839162854,16.34130268,130.47,130.44,11.15732699]
[1725839163153,16.34130268,130.47,130.46,11.15732699]
[1725839163331,17.30804599,130.52,130.46,11.15732699]
[1725839163663,19.22456336,130.52,130.46,11.15732699]
[1725839163830,16.71901833,130.51,130.46,11.15732699]
[1725839164544,20.0,130.5,130.46,11.15732699]
[1725839165427,46.91653846,130.49,130.44,11.15732699]
[1725839165642,45.0,130.49,130.44,11.15732699]
[1725839166444,61.47481633,130.49,130.44,11.15732699]
[1725839168736,1.9167275,130.48,130.41,6.4292]
[1725839168935,1.9167275,130.48,130.44,11.15732699]
[1725839169360,63.39159907,130.49,130.44,11.15732699]
[1725839169737,1.91677802,130.48,130.41,6.4292]
[1725839169950,38.2924701,130.48,130.42,11.15732699]
[1725839170264,45.0,130.47,130.42,11.15732699]
[1725839170559,1.91700036,130.46,130.42,11.15732699]
[1725839171565,62.76987932,130.47,130.39,16.5321]
[1725839171729,36.44310829,130.46,130.41,11.15732699]
[1725839171930,45.0,130.45,130.41,11.15732699]
[1725839174664,46.91722417,130.45,130.41,11.15732699]
[1725839176056,20.0,130.44,130.39,11.15732699]
[1725839176228,45.0,130.43,130.39,11.15732699]
[1725839177533,16.44310829,130.46,130.41,11.15732699]
[1725839177733,16.44310829,130.46,130.43,11.15732699]
[1725839180574,45.0,130.45,130.43,11.15732699]
[1725839182461,16.44310829,130.46,130.43,11.15732699]
[1725839183860,45.0,130.45,130.43,11.15732699]
[1725839185175,45.0,130.45,130.42,11.15732699]
[1725839188065,45.0,130.45,130.44,11.15732699]
[1725839192367,16.20672132,130.5,130.44,27.35622699]
[1725839192566,16.20672132,130.5,130.48,11.15732699]
[1725839193461,16.20672132,130.5,130.44,16.1989]
[1725839193462,16.20672132,130.5,130.47,11.15732699]
[1725839193678,45.0,130.49,130.46,11.15732699]
[1725839193871,1.91645606,130.48,130.46,11.15732699]
[1725839194178,45.0,130.49,130.46,11.15732699]
[1725839202657,16.20672132,130.5,130.48,11.15732699]
[1725839204566,45.0,130.49,130.48,11.15732699]
[1725839206589,45.0,130.49,130.46,11.15732699]
[1725839209582,45.0,130.49,130.48,11.15732699]
[1725839217210,15.70930271,130.53,130.48,11.15732699]
[1725839217385,15.70930271,130.53,130.52,11.15732699]
[1725839217595,0.8425024,130.54,130.52,11.15732699]
[1725839218288,0.8425024,130.54,130.53,11.15732699]
[1725839219978,0.8425024,130.54,130.49,15.0579]
[1725839220396,0.8425024,130.54,130.5,11.15732699]
[1725839221398,0.8425024,130.54,130.52,11.15732699]
[1725839226502,0.8425024,130.54,130.49,15.0579]
[1725839226701,0.8425024,130.54,130.53,11.15732699]
[1725839235426,0.8425024,130.54,130.51,11.15732699]
[1725839236123,0.8425024,130.54,130.53,11.15732699]
[1725839238340,0.8425024,130.54,130.49,15.0579]
[1725839238516,0.8425024,130.54,130.45,16.0628]
[1725839238713,22.20456916,130.53,130.45,27.22012699]
[1725839238912,91.43804498,130.52,130.42,16.0628]
[1725839239135,16.06340388,130.51,130.44,11.15732699]
[1725839239333,80.3927,130.5,130.44,11.15732699]
[1725839240126,1.91667667,130.49,130.44,11.15732699]
[1725839242712,80.3927,130.5,130.44,11.15732699]
[1725839242713,82.30937371,130.5,130.44,11.15732699]
[1725839243633,80.3927,130.5,130.46,11.15732699]
[1725839243837,45.0,130.5,130.48,11.15732699]
[1725839246944,45.0,130.5,130.46,11.15732699]
[1725839251244,45.0,130.5,130.48,11.15732699]
[1725839251744,14.14678742,130.51,130.48,11.15732699]
[1725839251962,14.14678742,130.51,130.5,11.15732699]
[1725839252641,16.016,130.53,130.5,11.15732699]
[1725839253349,16.62952837,130.54,130.52,11.15732699]
[1725839253934,0.8425024,130.54,130.52,11.15732699]
[1725839254527,0.8425024,130.54,130.52,26.91382699]
[1725839256136,0.8425024,130.54,130.53,27.66110864]
[1725839271467,16.4771,130.6,130.53,27.66110864]
[1725839271664,45.0,130.59,130.56,27.66110864]
[1725839273875,45.0,130.59,130.54,27.66110864]
[1725839274078,44.41515357,130.59,130.52,43.41760864]
[1725839274449,44.41528968,130.59,130.52,43.41760864]
[1725839275283,58.82132661,130.59,130.52,43.41760864]
[1725839276481,58.82132661,130.59,130.52,27.66110864]
[1725839276687,20.0,130.58,130.52,27.66110864]
[1725839276872,45.0,130.57,130.52,27.66110864]
[1725839278076,45.0,130.57,130.55,11.06576559]
[1725839284502,14.37725897,130.62,130.55,11.06576559]
[1725839284662,15.5243,130.63,130.59,11.06576559]
[1725839285988,20.0,130.62,130.59,11.06576559]
[1725839287387,45.0,130.61,130.59,11.06576559]
[1725839288384,14.86771529,130.64,130.59,11.06576559]
[1725839288589,20.0,130.63,130.59,11.06576559]
[1725839289797,45.0,130.62,130.59,11.06576559]
[1725839291380,1.91439864,130.61,130.59,11.06576559]
[1725839291684,45.0,130.62,130.59,11.06576559]
[1725839292267,45.0,130.62,130.56,6.3784]
[1725839292467,45.0,130.62,130.57,11.06576559]
[1725839294290,46.9146194,130.62,130.57,11.06576559]
[1725839294505,45.0,130.62,130.57,11.06576559]
[1725839297794,46.91457211,130.62,130.57,11.06576559]
[1725839298094,45.0,130.62,130.57,11.06576559]
[1725839298397,45.0,130.62,130.59,11.06576559]
[1725839299390,45.0,130.62,130.57,11.06576559]
[1725839299570,20.0,130.61,130.54,16.3182]
[1725839299769,46.91519088,130.6,130.54,11.06576559]
[1725839300199,20.0,130.59,130.54,11.06576559]
[1725839300493,45.0,130.58,130.54,11.06576559]
[1725839305188,45.0,130.58,130.56,11.06576559]
[1725839306186,14.0074293,130.62,130.56,27.30016559]
[1725839306392,14.0074293,130.62,130.58,11.06576559]
[1725839307389,45.0,130.61,130.58,11.06576559]
[1725839308707,45.0,130.61,130.56,11.06576559]
[1725839309006,1.91482083,130.6,130.56,11.06576559]
[1725839309585,21.91482083,130.6,130.54,11.06576559]
[1725839309902,45.0,130.59,130.53,16.2344]
[1725839310090,45.0,130.59,130.54,11.06576559]
[1725839314901,18.33162796,130.58,130.48,21.7456]
[1725839315099,21.91559802,130.57,130.51,11.06576559]
[1725839315283,45.0,130.56,130.51,11.06576559]
[1725839317411,46.91547713,130.56,130.51,11.06576559]
[1725839319107,45.0,130.56,130.51,11.06576559]
[1725839319608,20.0,130.57,130.51,11.06576559]
[1725839319810,1.91555701,130.56,130.53,11.06576559]
[1725839320109,1.9153623,130.61,130.48,21.7456]
[1725839320303,36.1993293,130.62,130.57,11.06576559]
[1725839321109,38.11401917,130.62,130.57,11.06576559]
[1725839321518,45.0,130.61,130.57,11.06576559]
[1725839321810,14.0074293,130.62,130.59,11.06576559]
[1725839322212,14.0074293,130.62,130.57,27.64563596]
[1725839323505,45.0,130.61,130.57,27.64563596]
[1725839324693,45.0,130.61,130.55,27.64563596]
[1725839326192,45.0,130.61,130.57,27.64563596]
[1725839326391,14.0074293,130.62,130.59,27.64563596]
[1725839327204,14.0074293,130.62,130.57,27.64563596]
[1725839327807,45.0,130.61,130.57,27.64563596]
[1725839332796,14.0074293,130.62,130.57,27.64563596]
[1725839333997,45.0,130.61,130.57,27.64563596]
[1725839337906,45.0,130.61,130.55,27.64563596]
[1725839338824,45.0,130.61,130.57,27.64563596]
[1725839339326,45.0,130.61,130.55,27.64563596]
[1725839341315,45.0,130.61,130.53,21.8832]
[1725839341316,46.91498103,130.61,130.53,49.52883596]
[1725839341523,45.0,130.61,130.53,49.52883596]
[1725839341826,37.43070843,130.6,130.53,43.17383596]
[1725839342001,45.0,130.59,130.53,27.64563596]
[1725839342206,1.91524162,130.58,130.53,27.64563596]
[1725839342418,21.91524162,130.58,130.53,27.64563596]
[1725839342713,21.91524162,130.58,130.5,21.382]
[1725839342714,46.91524947,130.57,130.51,27.64563596]
[1725839343653,46.91524947,130.57,130.49,27.64563596]
[1725839343937,20.0,130.56,130.49,27.64563596]
[1725839344353,45.0,130.55,130.49,27.64563596]
[1725839344653,17.50432412,130.54,130.46,16.1499]
[1725839344829,65.0,130.53,130.46,27.64563596]
[1725839345744,1.91606637,130.52,130.46,27.64563596]
[1725839346042,65.0,130.53,130.46,27.64563596]
[1725839346043,66.91608436,130.53,130.46,27.64563596]
[1725839347052,65.0,130.53,130.48,27.64563596]
[1725839347549,45.0,130.53,130.5,27.64563596]
[1725839347745,8.24889303,130.57,130.5,27.64563596]
[1725839347923,20.0,130.56,130.5,27.64563596]
[1725839349048,20.0,130.56,130.51,27.64563596]
[1725839350128,45.0,130.55,130.51,27.64563596]
[1725839350328,45.0,130.56,130.51,27.64563596]
[1725839351953,45.0,130.56,130.53,27.64563596]
[1725839352238,6.2883,130.6,130.53,27.64563596]
[1725839352450,6.2883,130.6,130.55,27.64563596]
[1725839353363,45.0,130.59,130.55,27.64563596]
[1725839353534,20.0,130.58,130.55,27.64563596]
[1725839353734,45.0,130.57,130.55,27.64563596]
[1725839357955,15.8831,130.61,130.55,27.64563596]
[1725839358157,1.91469169,130.6,130.55,27.64563596]
[1725839358462,20.0,130.6,130.55,27.64563596]
[1725839359345,45.0,130.59,130.55,27.64563596]
[1725839360262,45.0,130.59,130.56,11.06402449]
[1725839366371,14.0074293,130.62,130.58,11.06402449]
[1725839366541,14.0074293,130.62,130.61,11.06402449]
[1725839369364,59.0074293,130.62,130.61,11.06402449]
[1725839370053,59.0074293,130.62,130.59,11.06402449]
[1725839370253,45.0,130.61,130.59,11.06402449]
[1725839376565,45.0,130.61,130.55,6.6015]
[1725839376747,45.0,130.61,130.6,11.06402449]
[1725839381663,45.0,130.61,130.58,11.06402449]
[1725839382552,14.0074293,130.62,130.6,11.06402449]